[Event "Late-Titled-Tuesday-Blitz-April-16-2024"]
[Site "Chess.com"]
[Date "2024.04.16"]
[Round "3"]
[White "Attacker_2006"]
[Black "Ramil_Faizrakhmanov"]
[Result "0-1"]
[WhiteElo "2504"]
[BlackElo "2899"]
[TimeControl "180+1"]
[EndTime "14:29:22 PDT"]
[Termination "Ramil_Faizrakhmanov won by resignation"]

1. e4 {[%clk 0:03:00.9]} 1... c6 {[%clk 0:02:59.8]} 2. d4 {[%clk 0:03:00.1]}
2... d5 {[%clk 0:03:00.7]} 3. Nc3 {[%clk 0:02:56.7]} 3... dxe4 {[%clk
0:03:00.9]} 4. Nxe4 {[%clk 0:02:57.3]} 4... Bf5 {[%clk 0:03:01.5]} 5. Ng3 {[%clk
0:02:57.1]} 5... Bg6 {[%clk 0:03:01.8]} 6. Nf3 {[%clk 0:02:56.7]} 6... Nd7
{[%clk 0:03:02]} 7. Bd3 {[%clk 0:02:57]} 7... Ngf6 {[%clk 0:03:02]} 8. c3 {[%clk
0:02:54.6]} 8... e6 {[%clk 0:03:02.5]} 9. O-O {[%clk 0:02:55]} 9... Be7 {[%clk
0:02:59.7]} 10. Re1 {[%clk 0:02:55.2]} 10... O-O {[%clk 0:03:00.3]} 11. Bxg6
{[%clk 0:02:52.5]} 11... hxg6 {[%clk 0:03:01.2]} 12. Ne4 {[%clk 0:02:52.8]}
12... c5 {[%clk 0:03:00.6]} 13. Nxf6+ {[%clk 0:02:48.9]} 13... Nxf6 {[%clk
0:02:59.5]} 14. dxc5 {[%clk 0:02:49]} 14... Bxc5 {[%clk 0:02:59.4]} 15. Be3
{[%clk 0:02:48.8]} 15... Bxe3 {[%clk 0:02:56.6]} 16. Rxe3 {[%clk 0:02:49.7]}
16... Qb6 {[%clk 0:02:56]} 17. Qb3 {[%clk 0:02:48.7]} 17... Qc7 {[%clk
0:02:51.1]} 18. Rd1 {[%clk 0:02:44.9]} 18... Rfd8 {[%clk 0:02:50.9]} 19. Red3
{[%clk 0:02:43.4]} 19... Rxd3 {[%clk 0:02:51.2]} 20. Rxd3 {[%clk 0:02:44.3]}
20... b5 {[%clk 0:02:37.1]} 21. Qxb5 {[%clk 0:02:23.5]} 21... Rb8 {[%clk
0:02:36.3]} 22. Qe5 {[%clk 0:02:17.4]} 22... Rxb2 {[%clk 0:02:26.5]} 23. h3
{[%clk 0:02:05.1]} 23... Qb6 {[%clk 0:02:13]} 24. Qd4 {[%clk 0:01:58.7]} 24...
Kf8 {[%clk 0:01:15.6]} 25. Qxb6 {[%clk 0:01:42.6]} 25... axb6 {[%clk 0:01:16.5]}
26. Ne5 {[%clk 0:01:20.9]} 26... Ke8 {[%clk 0:01:04.9]} 27. Nc4 {[%clk 0:00:59]}
27... Rxa2 {[%clk 0:01:03.5]} 28. Nxb6 {[%clk 0:00:59.4]} 28... Ne4 {[%clk
0:01:01.1]} 29. f3 {[%clk 0:00:49]} 29... Ng3 {[%clk 0:01:00.5]} 30. c4 {[%clk
0:00:45.9]} 30... Ne2+ {[%clk 0:00:56.8]} 31. Kh1 {[%clk 0:00:34.4]} 31... Nf4
{[%clk 0:00:57.7]} 32. Rc3 {[%clk 0:00:28.6]} 32... Kd8 {[%clk 0:00:28.3]} 33.
c5 {[%clk 0:00:21.1]} 33... Kc7 {[%clk 0:00:27.7]} 34. g3 {[%clk 0:00:18.3]}
34... Ne2 {[%clk 0:00:26.9]} 35. Rd3 {[%clk 0:00:17.2]} 35... Nxg3+ {[%clk
0:00:26.8]} 36. Kg1 {[%clk 0:00:17.9]} 36... Kc6 {[%clk 0:00:22.9]} 37. Nc4
{[%clk 0:00:13.5]} 37... f6 {[%clk 0:00:17.1]} 38. Nd2 {[%clk 0:00:10.9]} 38...
Kxc5 {[%clk 0:00:13.4]} 39. Rd7 {[%clk 0:00:10.3]} 39... Kc6 {[%clk 0:00:12.3]}
40. Rd8 {[%clk 0:00:07.7]} 40... e5 {[%clk 0:00:12]} 41. Nc4 {[%clk 0:00:06.5]}
41... Ne2+ {[%clk 0:00:11]} 42. Kf2 {[%clk 0:00:05.1]} 42... Nd4+ {[%clk
0:00:11.9]} 43. Ke3 {[%clk 0:00:03.9]} 43... Rh2 {[%clk 0:00:07.6]} 44. Rc8+
{[%clk 0:00:04.2]} 44... Kd7 {[%clk 0:00:07.6]} 45. Nb6+ {[%clk 0:00:04.5]}
45... Ke6 {[%clk 0:00:07.2]} 46. Rc7 {[%clk 0:00:02.4]} 46... Rxh3 {[%clk
0:00:07.3]} 47. Rxg7 {[%clk 0:00:03.1]} 47... Rxf3+ {[%clk 0:00:07.6]} 48. Kd2
{[%clk 0:00:03.9]} 48... Rg3 {[%clk 0:00:07.4]} 49. Nc8 {[%clk 0:00:03.3]} 49...
g5 {[%clk 0:00:07.6]} 50. Re7+ {[%clk 0:00:03.6]} 50... Kf5 {[%clk 0:00:08.1]}
51. Nd6+ {[%clk 0:00:04.2]} 51... Kg6 {[%clk 0:00:08.8]} 52. Re8 {[%clk
0:00:03.9]} 52... Ra3 {[%clk 0:00:08.5]} 53. Rg8+ {[%clk 0:00:04.1]} 53... Kh5
{[%clk 0:00:08.2]} 54. Rf8 {[%clk 0:00:02.9]} 54... f5 {[%clk 0:00:08.3]} 55.
Nf7 {[%clk 0:00:02.7]} 55... e4 {[%clk 0:00:08]} 56. Rh8+ {[%clk 0:00:02.8]}
56... Kg6 {[%clk 0:00:08.2]} 57. Rg8+ {[%clk 0:00:03.7]} 57... Kxf7 {[%clk
0:00:08.6]} 58. Rxg5 {[%clk 0:00:04.5]} 58... Nf3+ {[%clk 0:00:08.8]} 0-1

[Event "Late-Titled-Tuesday-Blitz-April-16-2024"]
[Site "Chess.com"]
[Date "2024.04.16"]
[Round "3"]
[White "Sanan_Sjugirov"]
[Black "MarcoRiehle"]
[Result "1/2-1/2"]
[WhiteElo "3027"]
[BlackElo "2744"]
[TimeControl "180+1"]
[EndTime "14:29:26 PDT"]
[Termination "Game drawn by stalemate"]

1. e4 {[%clk 0:03:00.9]} 1... e5 {[%clk 0:03:00]} 2. Nf3 {[%clk 0:03:00.8]} 2...
Nf6 {[%clk 0:03:00.3]} 3. Nxe5 {[%clk 0:02:56]} 3... Nxe4 {[%clk 0:03:00.7]} 4.
Nf3 {[%clk 0:02:27.5]} 4... d5 {[%clk 0:02:58.9]} 5. d3 {[%clk 0:02:26.8]} 5...
Nf6 {[%clk 0:02:58.8]} 6. g3 {[%clk 0:02:14.7]} 6... Bd6 {[%clk 0:02:56.6]} 7.
Bg2 {[%clk 0:02:14.9]} 7... O-O {[%clk 0:02:57.1]} 8. O-O {[%clk 0:02:15.1]}
8... c5 {[%clk 0:02:56.3]} 9. Bg5 {[%clk 0:02:14]} 9... h6 {[%clk 0:02:49.2]}
10. Bxf6 {[%clk 0:02:14]} 10... Qxf6 {[%clk 0:02:49.7]} 11. Nc3 {[%clk
0:02:14.2]} 11... Be6 {[%clk 0:02:48.4]} 12. Nd2 {[%clk 0:02:11.2]} 12... Nc6
{[%clk 0:02:38.5]} 13. Nxd5 {[%clk 0:02:05.6]} 13... Bxd5 {[%clk 0:02:38.1]} 14.
Bxd5 {[%clk 0:02:06.5]} 14... Qxb2 {[%clk 0:02:38.3]} 15. Rb1 {[%clk 0:01:42.5]}
15... Qd4 {[%clk 0:02:31.3]} 16. Bxc6 {[%clk 0:01:36.7]} 16... bxc6 {[%clk
0:02:30]} 17. Nc4 {[%clk 0:01:34.2]} 17... Be7 {[%clk 0:02:08.6]} 18. Qf3 {[%clk
0:01:32.3]} 18... Qd5 {[%clk 0:02:07.9]} 19. Kg2 {[%clk 0:01:27.3]} 19... Rab8
{[%clk 0:02:00]} 20. Rb3 {[%clk 0:01:12.8]} 20... Bf6 {[%clk 0:01:52.4]} 21.
Rfb1 {[%clk 0:01:07.9]} 21... Rxb3 {[%clk 0:01:51.3]} 22. Rxb3 {[%clk
0:01:03.5]} 22... Re8 {[%clk 0:01:51.4]} 23. Ne3 {[%clk 0:00:54.5]} 23... Qd7
{[%clk 0:01:37.8]} 24. Ra3 {[%clk 0:00:38.8]} 24... Bd4 {[%clk 0:01:24.5]} 25.
Nf5 {[%clk 0:00:38.7]} 25... Re1 {[%clk 0:01:20.6]} 26. Ra6 {[%clk 0:00:32.1]}
26... Qb7 {[%clk 0:01:08.5]} 27. Rxc6 {[%clk 0:00:25.8]} 27... Qb1 {[%clk
0:01:08.8]} 28. Nxd4 {[%clk 0:00:16.4]} 28... Rg1+ {[%clk 0:01:03.7]} 29. Kh3
{[%clk 0:00:16.5]} 29... Qf1+ {[%clk 0:01:04.2]} 30. Kg4 {[%clk 0:00:15]} 30...
h5+ {[%clk 0:01:00.6]} 31. Kh4 {[%clk 0:00:13.2]} 31... g5+ {[%clk 0:00:50.1]}
32. Kxg5 {[%clk 0:00:12.8]} 32... Qc1+ {[%clk 0:00:45.1]} 33. Qf4 {[%clk
0:00:06.8]} 33... Qxf4+ {[%clk 0:00:43.3]} 34. Kxf4 {[%clk 0:00:07.7]} 34...
cxd4 {[%clk 0:00:43.7]} 35. h4 {[%clk 0:00:06.8]} 35... Kg7 {[%clk 0:00:39.9]}
36. Rc4 {[%clk 0:00:06.2]} 36... Rc1 {[%clk 0:00:37.3]} 37. Kf3 {[%clk
0:00:06.5]} 37... Kf6 {[%clk 0:00:35.1]} 38. Rxd4 {[%clk 0:00:05.7]} 38... Rxc2
{[%clk 0:00:34.9]} 39. Ra4 {[%clk 0:00:06.6]} 39... Rc7 {[%clk 0:00:35]} 40.
Ra6+ {[%clk 0:00:06.6]} 40... Kf5 {[%clk 0:00:34.3]} 41. Ra5+ {[%clk 0:00:07]}
41... Kg6 {[%clk 0:00:34]} 42. Kf4 {[%clk 0:00:07]} 42... f6 {[%clk 0:00:30.3]}
43. d4 {[%clk 0:00:07.1]} 43... Rc4 {[%clk 0:00:28.8]} 44. Ke4 {[%clk
0:00:06.9]} 44... Rc2 {[%clk 0:00:28.6]} 45. f3 {[%clk 0:00:06.5]} 45... Rg2
{[%clk 0:00:26.3]} 46. Kf4 {[%clk 0:00:05.8]} 46... Rd2 {[%clk 0:00:26.2]} 47.
Ke3 {[%clk 0:00:04.4]} 47... Rg2 {[%clk 0:00:26.1]} 48. Rxa7 {[%clk 0:00:04.3]}
48... Rxg3 {[%clk 0:00:26.3]} 49. a4 {[%clk 0:00:04.9]} 49... Rg1 {[%clk
0:00:25.6]} 50. d5 {[%clk 0:00:03.3]} 50... Rd1 {[%clk 0:00:20.6]} 51. Ke4
{[%clk 0:00:03.4]} 51... Re1+ {[%clk 0:00:21]} 52. Kd4 {[%clk 0:00:03.4]} 52...
Rd1+ {[%clk 0:00:18.2]} 53. Kc5 {[%clk 0:00:03.9]} 53... Kf5 {[%clk 0:00:18.5]}
54. a5 {[%clk 0:00:04.2]} 54... Rc1+ {[%clk 0:00:16.3]} 55. Kd6 {[%clk
0:00:04.6]} 55... Kf4 {[%clk 0:00:14.8]} 56. a6 {[%clk 0:00:04.9]} 56... Kxf3
{[%clk 0:00:15.3]} 57. Rf7 {[%clk 0:00:05]} 57... Ra1 {[%clk 0:00:15.4]} 58. a7
{[%clk 0:00:05.4]} 58... Ke4 {[%clk 0:00:14.3]} 59. Kc6 {[%clk 0:00:05.1]} 59...
Rc1+ {[%clk 0:00:10.3]} 60. Kb6 {[%clk 0:00:05]} 60... Rb1+ {[%clk 0:00:10.5]}
61. Kc5 {[%clk 0:00:05.4]} 61... Rc1+ {[%clk 0:00:09.1]} 62. Kd6 {[%clk
0:00:05.5]} 62... Ra1 {[%clk 0:00:09]} 63. Re7+ {[%clk 0:00:06]} 63... Kd4
{[%clk 0:00:08.7]} 64. Ke6 {[%clk 0:00:06.3]} 64... Re1+ {[%clk 0:00:08]} 65.
Kxf6 {[%clk 0:00:06.3]} 65... Rf1+ {[%clk 0:00:06.6]} 66. Ke6 {[%clk 0:00:06.8]}
66... Re1+ {[%clk 0:00:06.4]} 67. Kd6 {[%clk 0:00:07.2]} 67... Ra1 {[%clk
0:00:06.9]} 68. Rf7 {[%clk 0:00:06.2]} 68... Ra6+ {[%clk 0:00:06.4]} 69. Ke7
{[%clk 0:00:06.6]} 69... Rxa7+ {[%clk 0:00:06.9]} 70. Ke6 {[%clk 0:00:07.2]}
70... Rxf7 {[%clk 0:00:07.5]} 71. Kxf7 {[%clk 0:00:07.2]} 71... Kxd5 {[%clk
0:00:08.4]} 72. Kg6 {[%clk 0:00:07.5]} 72... Ke6 {[%clk 0:00:09.1]} 73. Kxh5
{[%clk 0:00:08.3]} 73... Kf7 {[%clk 0:00:10]} 74. Kg5 {[%clk 0:00:09.1]} 74...
Kg8 {[%clk 0:00:10.2]} 75. h5 {[%clk 0:00:10]} 75... Kh8 {[%clk 0:00:11.1]} 76.
h6 {[%clk 0:00:10.9]} 76... Kg8 {[%clk 0:00:12]} 77. Kg6 {[%clk 0:00:11.8]}
77... Kh8 {[%clk 0:00:12.9]} 78. h7 {[%clk 0:00:12.7]} 1/2-1/2

[Event "Late-Titled-Tuesday-Blitz-April-16-2024"]
[Site "Chess.com"]
[Date "2024.04.16"]
[Round "3"]
[White "ozates"]
[Black "Rud_Makarian"]
[Result "1/2-1/2"]
[WhiteElo "2531"]
[BlackElo "3002"]
[TimeControl "180+1"]
[EndTime "14:29:38 PDT"]
[Termination "Game drawn - insufficient material"]

1. e4 {[%clk 0:03:00.6]} 1... c5 {[%clk 0:02:55.5]} 2. Nf3 {[%clk 0:02:59.9]}
2... d6 {[%clk 0:02:55]} 3. Bb5+ {[%clk 0:02:58.8]} 3... Nd7 {[%clk 0:02:54.9]}
4. O-O {[%clk 0:02:58.6]} 4... a6 {[%clk 0:02:55.4]} 5. Bd3 {[%clk 0:02:54.5]}
5... Ngf6 {[%clk 0:02:55.5]} 6. Re1 {[%clk 0:02:54.9]} 6... b5 {[%clk
0:02:55.9]} 7. c4 {[%clk 0:02:51.2]} 7... b4 {[%clk 0:02:56.2]} 8. a3 {[%clk
0:02:39.9]} 8... bxa3 {[%clk 0:02:57.1]} 9. Nxa3 {[%clk 0:02:38.6]} 9... Bb7
{[%clk 0:02:58]} 10. Bc2 {[%clk 0:02:38.2]} 10... e6 {[%clk 0:02:56.7]} 11. Ba4
{[%clk 0:02:38]} 11... Be7 {[%clk 0:02:56.7]} 12. d4 {[%clk 0:02:38.2]} 12...
cxd4 {[%clk 0:02:56.7]} 13. Nxd4 {[%clk 0:02:36]} 13... Bxe4 {[%clk 0:02:49.7]}
14. Bf4 {[%clk 0:01:58.1]} 14... O-O {[%clk 0:02:43.1]} 15. Bc6 {[%clk 0:01:47]}
15... d5 {[%clk 0:02:30.3]} 16. Bxa8 {[%clk 0:01:43.4]} 16... Qxa8 {[%clk
0:02:31.2]} 17. cxd5 {[%clk 0:01:36.5]} 17... Bxd5 {[%clk 0:02:31.4]} 18. Nf3
{[%clk 0:01:32.8]} 18... h6 {[%clk 0:02:29.7]} 19. Nc2 {[%clk 0:01:29.5]} 19...
Bc5 {[%clk 0:02:26.9]} 20. Ne3 {[%clk 0:01:28.5]} 20... Rc8 {[%clk 0:02:22.5]}
21. Nxd5 {[%clk 0:01:27.7]} 21... Nxd5 {[%clk 0:02:23.4]} 22. Bg3 {[%clk
0:01:27.1]} 22... N7f6 {[%clk 0:02:22.2]} 23. Ne5 {[%clk 0:01:25.7]} 23... a5
{[%clk 0:02:19.7]} 24. Qf3 {[%clk 0:01:17.6]} 24... Qb7 {[%clk 0:02:18.6]} 25.
Nc4 {[%clk 0:01:13.5]} 25... Bb4 {[%clk 0:02:16.7]} 26. Nd6 {[%clk 0:01:07.8]}
26... Bxd6 {[%clk 0:02:16.8]} 27. Bxd6 {[%clk 0:01:08.7]} 27... Qxb2 {[%clk
0:02:17.1]} 28. Be5 {[%clk 0:01:03.4]} 28... Qc2 {[%clk 0:02:16]} 29. Rxa5
{[%clk 0:01:00.1]} 29... Kh7 {[%clk 0:02:07.4]} 30. h3 {[%clk 0:00:59.6]} 30...
Rc4 {[%clk 0:01:57.4]} 31. Ra7 {[%clk 0:00:55.4]} 31... Qg6 {[%clk 0:01:48.9]}
32. Bxf6 {[%clk 0:00:37.8]} 32... Nxf6 {[%clk 0:01:49.8]} 33. Qb7 {[%clk
0:00:38]} 33... Kg8 {[%clk 0:01:19.8]} 34. Ra8+ {[%clk 0:00:37.1]} 34... Kh7
{[%clk 0:01:19.9]} 35. Rf8 {[%clk 0:00:20.6]} 35... Rc2 {[%clk 0:00:50.3]} 36.
Qxf7 {[%clk 0:00:16.9]} 36... Qf5 {[%clk 0:00:50.7]} 37. Rf1 {[%clk 0:00:14.7]}
37... e5 {[%clk 0:00:47]} 38. Rb8 {[%clk 0:00:11.6]} 38... e4 {[%clk 0:00:43.8]}
39. Rb7 {[%clk 0:00:12]} 39... Qg5 {[%clk 0:00:43.4]} 40. Qe6 {[%clk 0:00:10.2]}
40... Rc1 {[%clk 0:00:37]} 41. Rb1 {[%clk 0:00:07.4]} 41... Rc5 {[%clk
0:00:36.3]} 42. Rb3 {[%clk 0:00:07.1]} 42... Re5 {[%clk 0:00:30]} 43. Qf7 {[%clk
0:00:07.3]} 43... Nh5 {[%clk 0:00:27.1]} 44. Re3 {[%clk 0:00:06.1]} 44... Nf4
{[%clk 0:00:23]} 45. Rg3 {[%clk 0:00:06.3]} 45... Ne2+ {[%clk 0:00:23.3]} 46.
Kh2 {[%clk 0:00:07]} 46... Nxg3 {[%clk 0:00:23.8]} 47. fxg3 {[%clk 0:00:07.9]}
47... e3 {[%clk 0:00:23.6]} 48. Re1 {[%clk 0:00:08.3]} 48... e2 {[%clk
0:00:23.4]} 49. Qf3 {[%clk 0:00:08.9]} 49... Qd2 {[%clk 0:00:22.6]} 50. Qf2
{[%clk 0:00:09.2]} 50... Re3 {[%clk 0:00:21.2]} 51. Qf5+ {[%clk 0:00:09.1]}
51... Kg8 {[%clk 0:00:21.5]} 52. Qc8+ {[%clk 0:00:09.4]} 52... Kf7 {[%clk
0:00:22.2]} 53. Qf5+ {[%clk 0:00:09.6]} 53... Ke7 {[%clk 0:00:22.6]} 54. Qc5+
{[%clk 0:00:09.5]} 54... Kd7 {[%clk 0:00:20.5]} 55. Qb5+ {[%clk 0:00:09.9]}
55... Kd6 {[%clk 0:00:20.8]} 56. Qb6+ {[%clk 0:00:10]} 56... Ke5 {[%clk
0:00:19.3]} 57. Qc7+ {[%clk 0:00:08.7]} 57... Ke4 {[%clk 0:00:18.8]} 58. Qe7+
{[%clk 0:00:08.7]} 58... Kd3 {[%clk 0:00:19.1]} 59. Qd6+ {[%clk 0:00:08.6]}
59... Kc2 {[%clk 0:00:19.8]} 60. Qc5+ {[%clk 0:00:08.9]} 60... Qc3 {[%clk
0:00:16.9]} 61. Qf5+ {[%clk 0:00:08.8]} 61... Kd2 {[%clk 0:00:16.9]} 62. Qf2
{[%clk 0:00:06.5]} 62... Qe5 {[%clk 0:00:15.1]} 63. Rb1 {[%clk 0:00:03.6]} 63...
Kc2 {[%clk 0:00:06.9]} 64. Qe1 {[%clk 0:00:03.7]} 64... Qxg3+ {[%clk 0:00:06.3]}
65. Qxg3 {[%clk 0:00:02.8]} 65... Rxg3 {[%clk 0:00:07.2]} 66. Kxg3 {[%clk
0:00:03.2]} 66... Kxb1 {[%clk 0:00:07.2]} 67. Kf2 {[%clk 0:00:04.1]} 67... Kc2
{[%clk 0:00:05.4]} 68. Kxe2 {[%clk 0:00:04.6]} 68... Kc3 {[%clk 0:00:06]} 69.
Ke3 {[%clk 0:00:05.2]} 69... Kc2 {[%clk 0:00:06.5]} 70. g4 {[%clk 0:00:05.1]}
70... Kd1 {[%clk 0:00:06.2]} 71. h4 {[%clk 0:00:05]} 71... Ke1 {[%clk
0:00:05.9]} 72. Kf4 {[%clk 0:00:05.6]} 72... Kf2 {[%clk 0:00:06]} 73. h5 {[%clk
0:00:05.3]} 73... Kg2 {[%clk 0:00:06.5]} 74. Kf5 {[%clk 0:00:05.7]} 74... Kg3
{[%clk 0:00:06.6]} 75. g5 {[%clk 0:00:06.3]} 75... hxg5 {[%clk 0:00:06.4]} 76.
Kxg5 {[%clk 0:00:06.6]} 76... Kh3 {[%clk 0:00:06.9]} 77. Kg6 {[%clk 0:00:05.9]}
77... Kg4 {[%clk 0:00:06.3]} 78. Kxg7 {[%clk 0:00:05.2]} 78... Kxh5 {[%clk
0:00:05.9]} 1/2-1/2

[Event "Late-Titled-Tuesday-Blitz-April-16-2024"]
[Site "Chess.com"]
[Date "2024.04.16"]
[Round "3"]
[White "venturov"]
[Black "MarceloPlaya"]
[Result "1/2-1/2"]
[WhiteElo "2514"]
[BlackElo "2329"]
[TimeControl "180+1"]
[EndTime "14:29:49 PDT"]
[Termination "Game drawn by repetition"]

1. e4 {[%clk 0:02:47.9]} 1... e6 {[%clk 0:02:59.9]} 2. d3 {[%clk 0:02:46.5]}
2... d5 {[%clk 0:02:59.7]} 3. Nd2 {[%clk 0:02:47.2]} 3... Bc5 {[%clk 0:02:59.4]}
4. Ngf3 {[%clk 0:02:45.6]} 4... Nf6 {[%clk 0:02:59.3]} 5. Be2 {[%clk 0:02:43]}
5... O-O {[%clk 0:02:55.7]} 6. O-O {[%clk 0:02:43.2]} 6... Bb6 {[%clk
0:02:51.9]} 7. c3 {[%clk 0:02:42]} 7... c5 {[%clk 0:02:51.8]} 8. a4 {[%clk
0:02:35]} 8... Nc6 {[%clk 0:02:51.5]} 9. Re1 {[%clk 0:02:30.7]} 9... e5 {[%clk
0:02:48.7]} 10. exd5 {[%clk 0:02:22.7]} 10... Nxd5 {[%clk 0:02:47.9]} 11. Nc4
{[%clk 0:02:23.6]} 11... Bc7 {[%clk 0:02:44.2]} 12. Bf1 {[%clk 0:02:15.7]} 12...
Re8 {[%clk 0:02:43.6]} 13. d4 {[%clk 0:02:05.2]} 13... cxd4 {[%clk 0:02:41]} 14.
cxd4 {[%clk 0:02:05.3]} 14... e4 {[%clk 0:02:38.3]} 15. Nfe5 {[%clk 0:02:05.6]}
15... Nxe5 {[%clk 0:02:27.5]} 16. dxe5 {[%clk 0:01:43.7]} 16... Bxe5 {[%clk
0:02:25.5]} 17. Nxe5 {[%clk 0:01:43.3]} 17... Rxe5 {[%clk 0:02:24.7]} 18. Bf4
{[%clk 0:01:42.6]} 18... Re8 {[%clk 0:02:15.9]} 19. Bg3 {[%clk 0:01:40.6]} 19...
Bf5 {[%clk 0:02:10.2]} 20. Bc4 {[%clk 0:01:37.9]} 20... Nb4 {[%clk 0:02:05.8]}
21. Qb3 {[%clk 0:01:22.4]} 21... Qe7 {[%clk 0:02:04.7]} 22. Bxf7+ {[%clk
0:01:17.3]} 22... Qxf7 {[%clk 0:02:03.5]} 23. Qxb4 {[%clk 0:01:17.9]} 23... Rad8
{[%clk 0:01:59]} 24. h4 {[%clk 0:01:08.7]} 24... Rd7 {[%clk 0:01:56]} 25. Rad1
{[%clk 0:01:04.1]} 25... h6 {[%clk 0:01:53.7]} 26. Rd4 {[%clk 0:01:00.3]} 26...
Red8 {[%clk 0:01:45.4]} 27. Red1 {[%clk 0:00:58.2]} 27... Rxd4 {[%clk
0:01:42.6]} 28. Rxd4 {[%clk 0:00:59.1]} 28... Rxd4 {[%clk 0:01:41.9]} 29. Qxd4
{[%clk 0:01:00]} 29... a6 {[%clk 0:01:39.7]} 30. Qe5 {[%clk 0:00:48.4]} 30...
Kh7 {[%clk 0:01:37.7]} 31. Kh2 {[%clk 0:00:45.7]} 31... Qe6 {[%clk 0:01:36]} 32.
Qb8 {[%clk 0:00:36.4]} 32... Qe7 {[%clk 0:01:27.6]} 33. a5 {[%clk 0:00:31.1]}
33... e3 {[%clk 0:01:20.3]} 34. fxe3 {[%clk 0:00:29.3]} 34... Be4 {[%clk
0:01:20.6]} 35. Qf4 {[%clk 0:00:24.1]} 35... Bc6 {[%clk 0:01:18.5]} 36. Be1
{[%clk 0:00:15]} 36... Qd7 {[%clk 0:01:04]} 37. Bc3 {[%clk 0:00:13.6]} 37... Qd5
{[%clk 0:01:01.2]} 38. Qg3 {[%clk 0:00:12.7]} 38... Qf7 {[%clk 0:00:58.7]} 39.
Qg4 {[%clk 0:00:11.3]} 39... Bd5 {[%clk 0:00:55.1]} 40. e4 {[%clk 0:00:11.4]}
40... Be6 {[%clk 0:00:54.6]} 41. Qg3 {[%clk 0:00:10.7]} 41... Qd7 {[%clk
0:00:51.8]} 42. Qe5 {[%clk 0:00:10.9]} 42... Bc4 {[%clk 0:00:47]} 43. Qg3 {[%clk
0:00:08.7]} 43... Be6 {[%clk 0:00:46.2]} 44. e5 {[%clk 0:00:08.9]} 44... Qf7
{[%clk 0:00:44.5]} 45. Kg1 {[%clk 0:00:06.5]} 45... Qf5 {[%clk 0:00:43.7]} 46.
Kh2 {[%clk 0:00:06.7]} 46... Qe4 {[%clk 0:00:40.5]} 47. Qf3 {[%clk 0:00:06.7]}
47... Qxh4+ {[%clk 0:00:39.8]} 48. Kg1 {[%clk 0:00:07.3]} 48... Qg5 {[%clk
0:00:38.9]} 49. Qxb7 {[%clk 0:00:07]} 49... Qe3+ {[%clk 0:00:36.6]} 50. Kh2
{[%clk 0:00:07.2]} 50... Qf4+ {[%clk 0:00:35.1]} 51. g3 {[%clk 0:00:07.4]} 51...
Qf2+ {[%clk 0:00:32.8]} 52. Qg2 {[%clk 0:00:08]} 52... Qf5 {[%clk 0:00:31.7]}
53. Qe2 {[%clk 0:00:06]} 53... Qh3+ {[%clk 0:00:30.9]} 54. Kg1 {[%clk
0:00:06.7]} 54... Qxg3+ {[%clk 0:00:31.1]} 55. Qg2 {[%clk 0:00:07.4]} 55... Qe3+
{[%clk 0:00:30.8]} 56. Kh1 {[%clk 0:00:06.3]} 56... Qd3 {[%clk 0:00:28.5]} 57.
Kh2 {[%clk 0:00:06]} 57... Qe3 {[%clk 0:00:22.8]} 58. Qg3 {[%clk 0:00:06]} 58...
Qe2+ {[%clk 0:00:21.9]} 59. Qg2 {[%clk 0:00:06.6]} 59... Qxg2+ {[%clk
0:00:21.7]} 60. Kxg2 {[%clk 0:00:07.1]} 60... Kg6 {[%clk 0:00:21.9]} 61. Kg3
{[%clk 0:00:05.7]} 61... Kf5 {[%clk 0:00:22]} 62. Bd4 {[%clk 0:00:03.8]} 62...
g5 {[%clk 0:00:20.5]} 63. b4 {[%clk 0:00:03]} 63... Bd7 {[%clk 0:00:19]} 64. Be3
{[%clk 0:00:01.1]} 64... h5 {[%clk 0:00:18.6]} 65. Bc5 {[%clk 0:00:02]} 65...
h4+ {[%clk 0:00:17.9]} 66. Kg2 {[%clk 0:00:01.8]} 66... Ke4 {[%clk 0:00:16.8]}
67. Bd6 {[%clk 0:00:02.3]} 67... Kd5 {[%clk 0:00:15.5]} 68. Be7 {[%clk
0:00:02.7]} 68... h3+ {[%clk 0:00:14.4]} 69. Kg3 {[%clk 0:00:02.6]} 69... g4
{[%clk 0:00:13.2]} 70. Bd6 {[%clk 0:00:03.4]} 70... Kc4 {[%clk 0:00:12.6]} 71.
Bc7 {[%clk 0:00:03.4]} 71... Be6 {[%clk 0:00:11.8]} 72. Bd6 {[%clk 0:00:03.7]}
72... Bf5 {[%clk 0:00:11.9]} 73. Kh2 {[%clk 0:00:04.1]} 73... Kd5 {[%clk
0:00:09.2]} 74. Kg3 {[%clk 0:00:05]} 74... Kc6 {[%clk 0:00:08.4]} 75. Kh2 {[%clk
0:00:05]} 75... Be6 {[%clk 0:00:08.6]} 76. Kg3 {[%clk 0:00:05.9]} 76... Bd7
{[%clk 0:00:08.9]} 77. Kh2 {[%clk 0:00:06.5]} 77... Be6 {[%clk 0:00:09.2]} 78.
Kg3 {[%clk 0:00:07.4]} 78... Bd7 {[%clk 0:00:09.5]} 79. Kh2 {[%clk 0:00:08.1]}
79... Be6 {[%clk 0:00:09.8]} 1/2-1/2

[Event "Late-Titled-Tuesday-Blitz-April-16-2024"]
[Site "Chess.com"]
[Date "2024.04.16"]
[Round "4"]
[White "ccccvhhhj"]
[Black "AdrianaPalao"]
[Result "1-0"]
[WhiteElo "2434"]
[BlackElo "1998"]
[TimeControl "180+1"]
[EndTime "14:31:55 PDT"]
[Termination "ccccvhhhj won by resignation"]

1. e4 {[%clk 0:03:00.9]} 1... c5 {[%clk 0:02:59.1]} 2. Nf3 {[%clk 0:03:01.5]}
2... e6 {[%clk 0:02:59.9]} 3. b4 {[%clk 0:03:01.3]} 3... Nf6 {[%clk 0:02:54.7]}
4. e5 {[%clk 0:03:00.7]} 4... Nd5 {[%clk 0:02:54.9]} 5. bxc5 {[%clk 0:03:01.6]}
5... Bxc5 {[%clk 0:02:55.5]} 6. c3 {[%clk 0:03:01.1]} 6... O-O {[%clk
0:02:54.9]} 7. d4 {[%clk 0:03:01.7]} 7... Bb6 {[%clk 0:02:55.3]} 8. Bd3 {[%clk
0:03:02.6]} 8... Nc6 {[%clk 0:02:55.6]} 9. Bxh7+ {[%clk 0:03:00.5]} 9... Kxh7
{[%clk 0:02:51.8]} 10. Ng5+ {[%clk 0:03:00.5]} 10... Kg6 {[%clk 0:02:44.4]} 11.
Qg4 {[%clk 0:03:01]} 11... f5 {[%clk 0:02:44.7]} 12. Qg3 {[%clk 0:03:01.3]}
12... f4 {[%clk 0:02:37.6]} 13. Bxf4 {[%clk 0:03:00.9]} 13... Kh5 {[%clk
0:02:13.8]} 14. Qh3+ {[%clk 0:02:58.8]} 1-0

[Event "Late-Titled-Tuesday-Blitz-April-16-2024"]
[Site "Chess.com"]
[Date "2024.04.16"]
[Round "4"]
[White "DonkyDonkyDonkey"]
[Black "diokletian"]
[Result "1-0"]
[WhiteElo "2918"]
[BlackElo "2672"]
[TimeControl "180+1"]
[EndTime "14:32:19 PDT"]
[Termination "DonkyDonkyDonkey won by resignation"]

1. d4 {[%clk 0:03:00.9]} 1... d5 {[%clk 0:02:58.4]} 2. Nc3 {[%clk 0:03:00.6]}
2... Nf6 {[%clk 0:02:58.1]} 3. Bf4 {[%clk 0:03:00.8]} 3... c5 {[%clk 0:02:58.2]}
4. e3 {[%clk 0:03:00.8]} 4... cxd4 {[%clk 0:02:58.5]} 5. exd4 {[%clk 0:03:01.7]}
5... Bg4 {[%clk 0:02:58.2]} 6. Nf3 {[%clk 0:03:00.3]} 6... Nc6 {[%clk
0:02:58.1]} 7. Be2 {[%clk 0:03:00.5]} 7... e6 {[%clk 0:02:58]} 8. h3 {[%clk
0:02:58.8]} 8... Bxf3 {[%clk 0:02:57.7]} 9. Bxf3 {[%clk 0:02:59.7]} 9... Qb6
{[%clk 0:02:57.8]} 10. Ne2 {[%clk 0:02:41.2]} 10... Qxb2 {[%clk 0:02:45.9]} 11.
O-O {[%clk 0:02:40.3]} 11... Qa3 {[%clk 0:02:42]} 12. Rb1 {[%clk 0:02:40.1]}
12... Bd6 {[%clk 0:02:20.8]} 13. Rb3 {[%clk 0:02:32.3]} 1-0